[Event "Titled Tuesday Blitz May 10 Early 2022"]
[White "Itkis, Boris"]
[Black "Taboas Rodriguez, Daniel"]
[WhiteFideId "1209167"]
[BlackFideId "2208466"]
[WhiteElo "2207"]
[BlackElo "2429"]
[Result "0-1"]
[Round "02"]
[TimeControl "180+1"]
[Date "2022.05.11"]
[WhiteClock "0:00:35"]
[BlackClock "0:01:35"]

1. Nf3 {[%clk 0:03:00]}  Nf6 {[%clk 0:02:55]} 2. b3 {[%clk 0:03:00]}  b6 {[%clk 0:02:53]} 3. Bb2 {[%clk 0:03:00]}  Bb7 {[%clk 0:02:53]} 4. e3 {[%clk 0:03:00]}  g6 {[%clk 0:02:51]} 5. d4 {[%clk 0:03:01]}  Bg7 {[%clk 0:02:52]} 6. Nbd2 {[%clk 0:03:01]}  O-O {[%clk 0:02:52]} 7. c4 {[%clk 0:03:00]}  Ne4 {[%clk 0:02:51]} 8. Nxe4 {[%clk 0:02:56]}  Bxe4 {[%clk 0:02:52]} 9. Bd3 {[%clk 0:02:57]}  Bxd3 {[%clk 0:02:52]} 10. Qxd3 {[%clk 0:02:58]}  c5 {[%clk 0:02:53]} 11. O-O {[%clk 0:02:56]}  Nc6 {[%clk 0:02:53]} 12. Rab1 {[%clk 0:02:53]}  cxd4 {[%clk 0:02:46]} 13. Nxd4 {[%clk 0:02:51]}  Rc8 {[%clk 0:02:44]} 14. Nxc6 {[%clk 0:02:47]}  Rxc6 {[%clk 0:02:45]} 15. Bxg7 {[%clk 0:02:45]}  Kxg7 {[%clk 0:02:45]} 16. Rfd1 {[%clk 0:02:45]}  d6 {[%clk 0:02:45]} 17. Qd5 {[%clk 0:02:30]}  Qc7 {[%clk 0:02:45]} 18. h3 {[%clk 0:02:12]}  Rc5 {[%clk 0:02:42]} 19. Qd4+ {[%clk 0:02:13]}  Kg8 {[%clk 0:02:42]} 20. Qe4 {[%clk 0:02:10]}  Rc8 {[%clk 0:02:42]} 21. Rd5 {[%clk 0:02:07]}  Rxd5 {[%clk 0:02:37]} 22. Qxd5 {[%clk 0:02:08]}  Qc5 {[%clk 0:02:38]} 23. Qxc5 {[%clk 0:02:05]}  Rxc5 {[%clk 0:02:39]} 24. Kf1 {[%clk 0:02:05]}  f5 {[%clk 0:02:38]} 25. Ke2 {[%clk 0:02:05]}  Kf7 {[%clk 0:02:39]} 26. Kd3 {[%clk 0:02:05]}  Kf6 {[%clk 0:02:39]} 27. e4 {[%clk 0:02:01]}  h5 {[%clk 0:02:37]} 28. exf5 {[%clk 0:02:00]}  gxf5 {[%clk 0:02:38]} 29. g3 {[%clk 0:01:58]}  e5 {[%clk 0:02:33]} 30. b4 {[%clk 0:01:55]}  Rc8 {[%clk 0:02:33]} 31. a4 {[%clk 0:01:55]}  h4 {[%clk 0:02:30]} 32. a5 {[%clk 0:01:47]}  hxg3 {[%clk 0:02:11]} 33. fxg3 {[%clk 0:01:42]}  Rh8 {[%clk 0:02:12]} 34. axb6 {[%clk 0:01:41]}  axb6 {[%clk 0:02:11]} 35. Rh1 {[%clk 0:01:31]}  Rg8 {[%clk 0:02:09]} 36. g4 {[%clk 0:01:27]}  fxg4 {[%clk 0:02:09]} 37. hxg4 {[%clk 0:01:28]}  Rxg4 {[%clk 0:02:10]} 38. Rh6+ {[%clk 0:01:29]}  Rg6 {[%clk 0:02:10]} 39. Rh8 {[%clk 0:01:29]}  Rg3+ {[%clk 0:02:08]} 40. Ke4 {[%clk 0:01:27]}  Rg4+ {[%clk 0:02:08]} 41. Kd3 {[%clk 0:01:28]}  Kf5 {[%clk 0:02:03]} 42. Rd8 {[%clk 0:01:23]}  Rd4+ {[%clk 0:01:59]} 43. Kc3 {[%clk 0:01:24]}  Ke4 {[%clk 0:02:00]} 44. Rb8 {[%clk 0:01:24]}  Ke3 {[%clk 0:01:49]} 45. Rxb6 {[%clk 0:01:22]}  e4 {[%clk 0:01:50]} 46. c5 {[%clk 0:01:20]}  d5 {[%clk 0:01:49]} 47. c6 {[%clk 0:01:18]}  Rc4+ {[%clk 0:01:49]} 48. Kb3 {[%clk 0:01:17]}  Kd3 {[%clk 0:01:47]} 49. b5 {[%clk 0:01:17]}  e3 {[%clk 0:01:48]} 50. Rb8 {[%clk 0:01:17]}  d4 {[%clk 0:01:41]} 51. Re8 {[%clk 0:01:08]}  e2 {[%clk 0:01:36]} 52. c7 {[%clk 0:00:40]}  Rxc7 {[%clk 0:01:35]} 53. Kb4 {[%clk 0:00:41]}  Kd2 {[%clk 0:01:33]} 54. b6 {[%clk 0:00:41]}  Rc1 {[%clk 0:01:33]} 55. b7 {[%clk 0:00:38]}  e1=Q {[%clk 0:01:33]} 56. Rxe1 {[%clk 0:00:36]}  Rxe1 {[%clk 0:01:34]} 57. b8=Q {[%clk 0:00:34]}  Rb1+ {[%clk 0:01:34]} 58. Kc4 {[%clk 0:00:34]}  Rxb8 {[%clk 0:01:35]} 59. Kxd4 {[%clk 0:00:35]}  Rb4+ {[%clk 0:01:35]} 0-1


[Site "https://www.chess.com"]

[Event "Titled Tuesday Blitz May 10 Early 2022"]
[White "Ivanisevic, Ivan"]
[Black "Bach, Ngoc Thuy Duong"]
[WhiteFideId "912417"]
[BlackFideId "12408956"]
[WhiteElo "2495"]
[BlackElo "1862"]
[Result "1-0"]
[Round "02"]
[TimeControl "180+1"]
[Date "2022.05.11"]
[WhiteClock "0:01:25"]
[BlackClock "0:00:33"]

1. d4 {[%clk 0:03:00]}  d5 {[%clk 0:02:59]} 2. Nf3 {[%clk 0:02:57]}  Nf6 {[%clk 0:02:59]} 3. Bf4 {[%clk 0:02:56]}  c5 {[%clk 0:02:59]} 4. e3 {[%clk 0:02:55]}  Nc6 {[%clk 0:02:59]} 5. Nbd2 {[%clk 0:02:55]}  cxd4 {[%clk 0:02:54]} 6. exd4 {[%clk 0:02:54]}  Bg4 {[%clk 0:02:53]} 7. Bb5 {[%clk 0:02:43]}  e6 {[%clk 0:02:51]} 8. c4 {[%clk 0:02:41]}  Bb4 {[%clk 0:02:44]} 9. Qa4 {[%clk 0:02:38]}  Bxd2+ {[%clk 0:02:40]} 10. Nxd2 {[%clk 0:02:36]}  O-O {[%clk 0:02:39]} 11. Bxc6 {[%clk 0:02:34]}  bxc6 {[%clk 0:02:38]} 12. c5 {[%clk 0:02:35]}  Qc8 {[%clk 0:02:28]} 13. f3 {[%clk 0:02:26]}  Bf5 {[%clk 0:02:27]} 14. Nb3 {[%clk 0:02:07]}  Re8 {[%clk 0:02:26]} 15. O-O {[%clk 0:02:04]}  Nd7 {[%clk 0:02:20]} 16. Bd6 {[%clk 0:02:02]}  Bd3 {[%clk 0:02:04]} 17. Rfe1 {[%clk 0:02:01]}  f6 {[%clk 0:01:29]} 18. Na5 {[%clk 0:01:51]}  Bb5 {[%clk 0:01:18]} 19. Qd1 {[%clk 0:01:50]}  e5 {[%clk 0:01:16]} 20. a4 {[%clk 0:01:49]}  Ba6 {[%clk 0:01:15]} 21. b4 {[%clk 0:01:48]}  exd4 {[%clk 0:01:08]} 22. Qxd4 {[%clk 0:01:45]}  Nf8 {[%clk 0:01:03]} 23. Rab1 {[%clk 0:01:35]}  Qd7 {[%clk 0:01:00]} 24. b5 {[%clk 0:01:31]}  cxb5 {[%clk 0:00:58]} 25. Qxd5+ {[%clk 0:01:28]}  Kh8 {[%clk 0:00:38]} 26. c6 {[%clk 0:01:27]}  Rxe1+ {[%clk 0:00:34]} 27. Rxe1 {[%clk 0:01:28]}  Qd8 {[%clk 0:00:34]} 28. c7 {[%clk 0:01:26]}  Qc8 {[%clk 0:00:33]} 29. axb5 {[%clk 0:01:25]} 1-0


[Site "https://www.chess.com"]

[Event "Titled Tuesday Blitz May 10 Early 2022"]
[White "Jaracz, Pawel"]
[Black "Sadhwani, Raunak"]
[WhiteFideId "1102222"]
[BlackFideId "35093487"]
[WhiteElo "2429"]
[BlackElo "2616"]
[Result "0-1"]
[Round "02"]
[TimeControl "180+1"]
[Date "2022.05.10"]
[WhiteClock "0:00:01"]
[BlackClock "0:00:08"]

1. e4 {[%clk 0:03:00]}  e5 {[%clk 0:03:00]} 2. Nf3 {[%clk 0:03:00]}  Nc6 {[%clk 0:03:00]} 3. Bb5 {[%clk 0:03:00]}  Nge7 {[%clk 0:03:01]} 4. O-O {[%clk 0:02:59]}  Ng6 {[%clk 0:03:01]} 5. Nc3 {[%clk 0:02:59]}  a6 {[%clk 0:02:54]} 6. Ba4 {[%clk 0:02:57]}  Bc5 {[%clk 0:02:54]} 7. Nd5 {[%clk 0:02:53]}  Ba7 {[%clk 0:02:50]} 8. c3 {[%clk 0:02:53]}  O-O {[%clk 0:02:48]} 9. Bc2 {[%clk 0:02:50]}  d6 {[%clk 0:02:48]} 10. h3 {[%clk 0:02:46]}  f5 {[%clk 0:02:43]} 11. d3 {[%clk 0:02:39]}  f4 {[%clk 0:02:41]} 12. d4 {[%clk 0:02:39]}  Kh8 {[%clk 0:02:40]} 13. b3 {[%clk 0:02:38]}  Nh4 {[%clk 0:02:27]} 14. Kh2 {[%clk 0:01:48]}  Nxf3+ {[%clk 0:01:47]} 15. Qxf3 {[%clk 0:01:47]}  exd4 {[%clk 0:01:47]} 16. Bxf4 {[%clk 0:01:44]}  dxc3 {[%clk 0:01:47]} 17. Qxc3 {[%clk 0:01:36]}  Bd4 {[%clk 0:01:47]} 18. Qd2 {[%clk 0:01:37]}  Bxa1 {[%clk 0:01:44]} 19. Rxa1 {[%clk 0:01:38]}  Be6 {[%clk 0:01:40]} 20. Bg5 {[%clk 0:01:35]}  Qd7 {[%clk 0:01:37]} 21. Nf4 {[%clk 0:01:35]}  Rae8 {[%clk 0:01:33]} 22. Re1 {[%clk 0:01:30]}  Qf7 {[%clk 0:01:28]} 23. Nxe6 {[%clk 0:01:11]}  Rxe6 {[%clk 0:01:29]} 24. Be3 {[%clk 0:01:01]}  Rf6 {[%clk 0:01:26]} 25. Rf1 {[%clk 0:00:53]}  h6 {[%clk 0:01:04]} 26. f4 {[%clk 0:00:52]}  Qe7 {[%clk 0:00:59]} 27. Qd1 {[%clk 0:00:44]}  Re6 {[%clk 0:00:55]} 28. Qf3 {[%clk 0:00:19]}  Re8 {[%clk 0:00:50]} 29. e5 {[%clk 0:00:18]}  dxe5 {[%clk 0:00:38]} 30. Qe4 {[%clk 0:00:18]}  g6 {[%clk 0:00:34]} 31. f5 {[%clk 0:00:19]}  gxf5 {[%clk 0:00:35]} 32. Rxf5 {[%clk 0:00:19]}  Nd4 {[%clk 0:00:24]} 33. Bxd4 {[%clk 0:00:16]}  exd4 {[%clk 0:00:25]} 34. Qxd4+ {[%clk 0:00:17]}  Re5 {[%clk 0:00:19]} 35. Rf3 {[%clk 0:00:05]}  Qg7 {[%clk 0:00:14]} 36. Rf2 {[%clk 0:00:01]}  Re3 {[%clk 0:00:08]} 0-1


[Site "https://www.chess.com"]

[Event "Titled Tuesday Blitz May 10 Early 2022"]
[White "Jian, Alex"]
[Black "Golizadeh, Asghar"]
[WhiteFideId "30901022"]
[BlackFideId "12505269"]
[WhiteElo "2111"]
[BlackElo "2403"]
[Result "1/2-1/2"]
[Round "02"]
[TimeControl "180+1"]
[Date "2022.05.11"]
[WhiteClock "0:00:04"]
[BlackClock "0:00:17"]

1. d4 {[%clk 0:03:00]}  Nf6 {[%clk 0:03:00]} 2. c4 {[%clk 0:03:00]}  e6 {[%clk 0:03:00]} 3. Nc3 {[%clk 0:03:01]}  Bb4 {[%clk 0:03:01]} 4. Qc2 {[%clk 0:03:01]}  b6 {[%clk 0:03:01]} 5. e4 {[%clk 0:03:01]}  c5 {[%clk 0:02:59]} 6. d5 {[%clk 0:03:01]}  Qe7 {[%clk 0:02:59]} 7. Ne2 {[%clk 0:03:01]}  exd5 {[%clk 0:02:59]} 8. exd5 {[%clk 0:03:01]}  O-O {[%clk 0:02:59]} 9. Bd2 {[%clk 0:02:58]}  d6 {[%clk 0:03:00]} 10. O-O-O {[%clk 0:02:57]}  Re8 {[%clk 0:03:00]} 11. a3 {[%clk 0:02:53]}  Ba5 {[%clk 0:02:58]} 12. Ng3 {[%clk 0:02:41]}  Nbd7 {[%clk 0:02:53]} 13. Be2 {[%clk 0:02:00]}  Ba6 {[%clk 0:02:49]} 14. Rhe1 {[%clk 0:01:53]}  Qf8 {[%clk 0:02:46]} 15. f4 {[%clk 0:01:44]}  Rab8 {[%clk 0:02:43]} 16. Bd3 {[%clk 0:01:26]}  Bxc3 {[%clk 0:02:33]} 17. Bxc3 {[%clk 0:01:26]}  Rxe1 {[%clk 0:02:32]} 18. Rxe1 {[%clk 0:01:26]}  b5 {[%clk 0:02:32]} 19. cxb5 {[%clk 0:00:53]}  Bxb5 {[%clk 0:02:32]} 20. Bxb5 {[%clk 0:00:41]}  Rxb5 {[%clk 0:02:31]} 21. Nf5 {[%clk 0:00:42]}  Rb8 {[%clk 0:02:12]} 22. g4 {[%clk 0:00:35]}  Re8 {[%clk 0:02:00]} 23. Rxe8 {[%clk 0:00:31]}  Nxe8 {[%clk 0:02:01]} 24. Qe2 {[%clk 0:00:24]}  Ndf6 {[%clk 0:01:51]} 25. Ne7+ {[%clk 0:00:16]}  Kh8 {[%clk 0:01:51]} 26. g5 {[%clk 0:00:17]}  Ng8 {[%clk 0:01:47]} 27. Nf5 {[%clk 0:00:10]}  f6 {[%clk 0:01:48]} 28. Qe6 {[%clk 0:00:08]}  a6 {[%clk 0:01:24]} 29. h4 {[%clk 0:00:08]}  h5 {[%clk 0:01:11]} 30. gxh6 {[%clk 0:00:07]}  Nxh6 {[%clk 0:01:11]} 31. Ne7 {[%clk 0:00:05]}  Kh7 {[%clk 0:01:06]} 32. Qe4+ {[%clk 0:00:05]}  f5 {[%clk 0:01:06]} 33. Qe6 {[%clk 0:00:05]}  Nf6 {[%clk 0:01:07]} 34. Nxf5 {[%clk 0:00:05]}  Nfg4 {[%clk 0:01:04]} 35. Nxh6 {[%clk 0:00:01]}  Qxf4+ {[%clk 0:01:05]} 36. Kb1 {[%clk 0:00:02]}  Qf1+ {[%clk 0:01:02]} 37. Ka2 {[%clk 0:00:02]}  Nxh6 {[%clk 0:01:03]} 38. Qxd6 {[%clk 0:00:02]}  Qc4+ {[%clk 0:01:03]} 39. Kb1 {[%clk 0:00:02]}  Qd3+ {[%clk 0:01:03]} 40. Ka2 {[%clk 0:00:02]}  Nf5 {[%clk 0:01:03]} 41. Qd7 {[%clk 0:00:02]}  Qc4+ {[%clk 0:01:02]} 42. Kb1 {[%clk 0:00:02]}  Qe4+ {[%clk 0:01:02]} 43. Ka2 {[%clk 0:00:03]}  Kh6 {[%clk 0:01:00]} 44. Qc6+ {[%clk 0:00:02]}  g6 {[%clk 0:01:00]} 45. Ka1 {[%clk 0:00:03]}  Ne3 {[%clk 0:00:59]} 46. Qf6 {[%clk 0:00:02]}  Nc2+ {[%clk 0:00:59]} 47. Ka2 {[%clk 0:00:03]}  Qxd5+ {[%clk 0:00:50]} 48. Kb1 {[%clk 0:00:03]}  Qd1+ {[%clk 0:00:51]} 49. Ka2 {[%clk 0:00:03]}  Qd5+ {[%clk 0:00:41]} 50. Kb1 {[%clk 0:00:04]}  Qd1+ {[%clk 0:00:42]} 51. Ka2 {[%clk 0:00:04]}  Qd5+ {[%clk 0:00:17]} 1/2-1/2


[Site "https://www.chess.com"]

[Event "Titled Tuesday Blitz May 10 Early 2022"]
[White "Jumabayev, Rinat"]
[Black "Kruckenhauser, Arthur"]
[WhiteFideId "13702661"]
[BlackFideId "1642812"]
[WhiteElo "2561"]
[BlackElo "2243"]
[Result "1/2-1/2"]
[Round "02"]
[TimeControl "180+1"]
[Date "2022.05.10"]
[WhiteClock "0:00:17"]
[BlackClock "0:00:16"]

1. d4 {[%clk 0:03:00]}  Nf6 {[%clk 0:02:55]} 2. Nf3 {[%clk 0:03:00]}  d5 {[%clk 0:02:55]} 3. Bf4 {[%clk 0:03:01]}  c5 {[%clk 0:02:54]} 4. e3 {[%clk 0:03:01]}  Nc6 {[%clk 0:02:55]} 5. Nbd2 {[%clk 0:03:00]}  Nh5 {[%clk 0:02:45]} 6. Be5 {[%clk 0:02:55]}  e6 {[%clk 0:02:40]} 7. c4 {[%clk 0:02:52]}  cxd4 {[%clk 0:02:32]} 8. exd4 {[%clk 0:02:49]}  Nf6 {[%clk 0:02:31]} 9. c5 {[%clk 0:02:38]}  Nxe5 {[%clk 0:02:29]} 10. Nxe5 {[%clk 0:02:37]}  Be7 {[%clk 0:02:26]} 11. Bb5+ {[%clk 0:02:37]}  Nd7 {[%clk 0:02:26]} 12. Qa4 {[%clk 0:02:26]}  f6 {[%clk 0:02:23]} 13. Nxd7 {[%clk 0:02:20]}  Bxd7 {[%clk 0:02:23]} 14. O-O {[%clk 0:02:21]}  a6 {[%clk 0:02:21]} 15. Bxd7+ {[%clk 0:02:16]}  Qxd7 {[%clk 0:02:22]} 16. Qb3 {[%clk 0:02:16]}  Kf7 {[%clk 0:02:06]} 17. f4 {[%clk 0:02:11]}  Rab8 {[%clk 0:01:55]} 18. Rac1 {[%clk 0:02:07]}  Rhc8 {[%clk 0:01:52]} 19. Qh3 {[%clk 0:02:04]}  b6 {[%clk 0:01:35]} 20. c6 {[%clk 0:01:49]}  Rxc6 {[%clk 0:01:32]} 21. Qxh7 {[%clk 0:01:49]}  Rxc1 {[%clk 0:01:25]} 22. Rxc1 {[%clk 0:01:48]}  Rc8 {[%clk 0:01:26]} 23. Re1 {[%clk 0:01:46]}  Bb4 {[%clk 0:01:19]} 24. Re2 {[%clk 0:01:11]}  Bxd2 {[%clk 0:00:55]} 25. Rxd2 {[%clk 0:01:12]}  Rc1+ {[%clk 0:00:56]} 26. Kf2 {[%clk 0:01:11]}  Qb5 {[%clk 0:00:57]} 27. Re2 {[%clk 0:00:59]}  Qc4 {[%clk 0:00:51]} 28. Qh5+ {[%clk 0:00:36]}  Ke7 {[%clk 0:00:51]} 29. Qg4 {[%clk 0:00:23]}  Qxd4+ {[%clk 0:00:47]} 30. Kg3 {[%clk 0:00:23]}  Qd3+ {[%clk 0:00:33]} 31. Kf2 {[%clk 0:00:23]}  Qd4+ {[%clk 0:00:33]} 32. Kg3 {[%clk 0:00:23]}  Qd3+ {[%clk 0:00:30]} 33. Kf2 {[%clk 0:00:17]}  Qd4+ {[%clk 0:00:16]} 1/2-1/2


[Site "https://www.chess.com"]

[Event "Titled Tuesday Blitz May 10 Early 2022"]
[White "Kadric, Denis"]
[Black "Estrada Nieto, Julian"]
[WhiteFideId "14403803"]
[BlackFideId "5101018"]
[WhiteElo "2657"]
[BlackElo "2252"]
[Result "1-0"]
[Round "02"]
[TimeControl "180+1"]
[Date "2022.05.11"]
[WhiteClock "0:00:33"]
[BlackClock "0:00:12"]

1. e4 {[%clk 0:03:00]}  e5 {[%clk 0:02:58]} 2. Nf3 {[%clk 0:03:00]}  Nc6 {[%clk 0:02:57]} 3. Nc3 {[%clk 0:02:58]}  Nf6 {[%clk 0:02:56]} 4. Bb5 {[%clk 0:02:57]}  Bb4 {[%clk 0:02:55]} 5. d3 {[%clk 0:02:56]}  d6 {[%clk 0:02:49]} 6. O-O {[%clk 0:02:55]}  Bxc3 {[%clk 0:02:49]} 7. bxc3 {[%clk 0:02:56]}  O-O {[%clk 0:02:50]} 8. Bg5 {[%clk 0:02:55]}  h6 {[%clk 0:02:45]} 9. Bh4 {[%clk 0:02:55]}  Qe7 {[%clk 0:02:46]} 10. Re1 {[%clk 0:02:55]}  Nd8 {[%clk 0:02:35]} 11. d4 {[%clk 0:02:55]}  Ne6 {[%clk 0:02:34]} 12. dxe5 {[%clk 0:02:52]}  dxe5 {[%clk 0:02:33]} 13. Nxe5 {[%clk 0:02:52]}  Qc5 {[%clk 0:02:31]} 14. Bxf6 {[%clk 0:02:51]}  Qxb5 {[%clk 0:02:07]} 15. Ng4 {[%clk 0:02:45]}  gxf6 {[%clk 0:02:00]} 16. e5 {[%clk 0:02:34]}  Nf4 {[%clk 0:01:37]} 17. Nxf6+ {[%clk 0:02:19]}  Kg7 {[%clk 0:01:22]} 18. Qf3 {[%clk 0:01:45]}  Ng6 {[%clk 0:01:18]} 19. Nh5+ {[%clk 0:01:38]}  Kh7 {[%clk 0:01:09]} 20. Qf6 {[%clk 0:01:38]}  Rg8 {[%clk 0:01:07]} 21. Qxf7+ {[%clk 0:01:38]}  Kh8 {[%clk 0:01:07]} 22. Rab1 {[%clk 0:00:48]}  Qe8 {[%clk 0:01:00]} 23. Qf6+ {[%clk 0:00:44]}  Kh7 {[%clk 0:01:00]} 24. e6 {[%clk 0:00:44]}  Qe7 {[%clk 0:00:56]} 25. Qxe7+ {[%clk 0:00:39]}  Nxe7 {[%clk 0:00:56]} 26. Nf6+ {[%clk 0:00:39]}  Kg7 {[%clk 0:00:56]} 27. Nxg8 {[%clk 0:00:40]}  Kxg8 {[%clk 0:00:55]} 28. Rbd1 {[%clk 0:00:40]}  Kg7 {[%clk 0:00:49]} 29. Rd8 {[%clk 0:00:37]}  b6 {[%clk 0:00:48]} 30. g4 {[%clk 0:00:35]}  Ba6 {[%clk 0:00:45]} 31. Rxa8 {[%clk 0:00:34]}  Bc4 {[%clk 0:00:16]} 32. Rxa7 {[%clk 0:00:33]}  Kf6 {[%clk 0:00:12]} 33. Rxc7 {[%clk 0:00:32]}  Bxe6 {[%clk 0:00:13]} 34. Rxe7 {[%clk 0:00:33]}  Kxe7 {[%clk 0:00:12]} 35. f4 {[%clk 0:00:33]} 1-0


[Site "https://www.chess.com"]

[Event "Titled Tuesday Blitz May 10 Early 2022"]
[White "Karolczuk, Iwo"]
[Black "Duarte, Leonardo"]
[WhiteFideId "21816972"]
[BlackFideId "110582"]
[WhiteElo "2258"]
[BlackElo "2217"]
[Result "1-0"]
[Round "02"]
[TimeControl "180+1"]
[Date "2022.05.11"]
[WhiteClock "0:00:03"]
[BlackClock "0:00:02"]

1. d4 {[%clk 0:03:00]}  Nf6 {[%clk 0:02:58]} 2. c4 {[%clk 0:02:59]}  g6 {[%clk 0:02:58]} 3. Nc3 {[%clk 0:02:57]}  Bg7 {[%clk 0:02:59]} 4. g3 {[%clk 0:02:57]}  O-O {[%clk 0:02:58]} 5. Bg2 {[%clk 0:02:57]}  d6 {[%clk 0:02:55]} 6. Nf3 {[%clk 0:02:57]}  Bf5 {[%clk 0:02:51]} 7. O-O {[%clk 0:02:54]}  Nc6 {[%clk 0:02:41]} 8. d5 {[%clk 0:02:41]}  Na5 {[%clk 0:02:36]} 9. Nd4 {[%clk 0:02:36]}  Bd7 {[%clk 0:02:12]} 10. b3 {[%clk 0:02:27]}  c5 {[%clk 0:02:10]} 11. dxc6 {[%clk 0:02:25]}  Nxc6 {[%clk 0:02:08]} 12. Nxc6 {[%clk 0:02:24]}  Bxc6 {[%clk 0:02:07]} 13. Bb2 {[%clk 0:02:22]}  Bxg2 {[%clk 0:02:04]} 14. Kxg2 {[%clk 0:02:23]}  Qd7 {[%clk 0:02:03]} 15. Qd3 {[%clk 0:02:21]}  a6 {[%clk 0:02:02]} 16. a4 {[%clk 0:02:18]}  Rac8 {[%clk 0:02:01]} 17. Rad1 {[%clk 0:02:17]}  Qc6+ {[%clk 0:02:01]} 18. e4 {[%clk 0:02:00]}  Rfe8 {[%clk 0:01:59]} 19. Rfe1 {[%clk 0:01:57]}  Nd7 {[%clk 0:01:58]} 20. Qc2 {[%clk 0:01:37]}  Nc5 {[%clk 0:01:52]} 21. Nd5 {[%clk 0:01:31]}  Bxb2 {[%clk 0:01:29]} 22. Qxb2 {[%clk 0:01:32]}  b5 {[%clk 0:01:28]} 23. cxb5 {[%clk 0:01:22]}  axb5 {[%clk 0:01:28]} 24. a5 {[%clk 0:01:22]}  b4 {[%clk 0:00:56]} 25. Re3 {[%clk 0:00:45]}  Qb5 {[%clk 0:00:48]} 26. e5 {[%clk 0:00:44]}  dxe5 {[%clk 0:00:41]} 27. Qxe5 {[%clk 0:00:38]}  Qc6 {[%clk 0:00:17]} 28. Rc1 {[%clk 0:00:10]}  Qb7 {[%clk 0:00:11]} 29. Kg1 {[%clk 0:00:05]}  Ne6 {[%clk 0:00:11]} 30. Rce1 {[%clk 0:00:05]}  Rc5 {[%clk 0:00:06]} 31. Nf6+ {[%clk 0:00:02]}  exf6 {[%clk 0:00:06]} 32. Qxf6 {[%clk 0:00:03]}  Qc7 {[%clk 0:00:04]} 33. h4 {[%clk 0:00:03]}  Rc1 {[%clk 0:00:03]} 34. h5 {[%clk 0:00:03]}  Rxe1+ {[%clk 0:00:03]} 35. Rxe1 {[%clk 0:00:04]}  Qd8 {[%clk 0:00:02]} 36. Qe5 {[%clk 0:00:03]}  Rf8 {[%clk 0:00:02]} 37. h6 {[%clk 0:00:03]}  Qd7 {[%clk 0:00:02]} 38. Qf6 {[%clk 0:00:03]} 1-0


[Site "https://www.chess.com"]

[Event "Titled Tuesday Blitz May 10 Early 2022"]
[White "Kashefi, Amir Hosein"]
[Black "Suleymanli, Suleyman"]
[WhiteFideId "12557935"]
[BlackFideId "13416375"]
[WhiteElo "2005"]
[BlackElo "1598"]
[Result "0-1"]
[Round "02"]
[TimeControl "180+1"]
[Date "2022.05.11"]
[WhiteClock "0:00:01"]
[BlackClock "0:02:15"]

1. d4 {[%clk 0:03:00]}  d5 {[%clk 0:03:00]} 2. Nf3 {[%clk 0:03:00]}  Bf5 {[%clk 0:02:59]} 3. g3 {[%clk 0:03:00]}  e6 {[%clk 0:02:59]} 4. Bg2 {[%clk 0:03:00]}  Nf6 {[%clk 0:03:00]} 5. O-O {[%clk 0:02:59]}  Be7 {[%clk 0:03:00]} 6. c4 {[%clk 0:02:54]}  c6 {[%clk 0:03:00]} 7. Nc3 {[%clk 0:02:53]}  Nbd7 {[%clk 0:02:57]} 8. Bg5 {[%clk 0:02:42]}  h6 {[%clk 0:02:56]} 9. Bxf6 {[%clk 0:02:41]}  Bxf6 {[%clk 0:02:56]} 10. b3 {[%clk 0:02:28]}  O-O {[%clk 0:02:50]} 11. e3 {[%clk 0:01:57]}  Rb8 {[%clk 0:02:45]} 12. Rc1 {[%clk 0:01:53]}  b5 {[%clk 0:02:44]} 13. cxb5 {[%clk 0:01:45]}  cxb5 {[%clk 0:02:45]} 14. Ne2 {[%clk 0:01:39]}  a5 {[%clk 0:02:44]} 15. Nf4 {[%clk 0:01:24]}  Be7 {[%clk 0:02:43]} 16. Nd3 {[%clk 0:00:56]}  Bd6 {[%clk 0:02:39]} 17. Qd2 {[%clk 0:00:52]}  a4 {[%clk 0:02:35]} 18. b4 {[%clk 0:00:41]}  Nb6 {[%clk 0:02:33]} 19. Nfe5 {[%clk 0:00:35]}  Nc4 {[%clk 0:02:33]} 20. Nxc4 {[%clk 0:00:33]}  bxc4 {[%clk 0:02:34]} 21. Nc5 {[%clk 0:00:34]}  Bxc5 {[%clk 0:02:34]} 22. dxc5 {[%clk 0:00:31]}  a3 {[%clk 0:02:34]} 23. e4 {[%clk 0:00:24]}  dxe4 {[%clk 0:02:23]} 24. Qxd8 {[%clk 0:00:23]}  Rfxd8 {[%clk 0:02:24]} 25. Rxc4 {[%clk 0:00:24]}  Rd2 {[%clk 0:02:24]} 26. c6 {[%clk 0:00:23]}  Rxa2 {[%clk 0:02:21]} 27. c7 {[%clk 0:00:21]}  Rc8 {[%clk 0:02:21]} 28. Rd1 {[%clk 0:00:11]}  e5 {[%clk 0:02:21]} 29. Rd8+ {[%clk 0:00:09]}  Kh7 {[%clk 0:02:20]} 30. Rxc8 {[%clk 0:00:03]}  Bxc8 {[%clk 0:02:20]} 31. Bxe4+ {[%clk 0:00:04]}  f5 {[%clk 0:02:20]} 32. Bxf5+ {[%clk 0:00:01]}  Bxf5 {[%clk 0:02:19]} 33. c8=Q {[%clk 0:00:02]}  Bxc8 {[%clk 0:02:20]} 34. Rxc8 {[%clk 0:00:03]}  Ra1+ {[%clk 0:02:21]} 35. Kg2 {[%clk 0:00:03]}  Rb1 {[%clk 0:02:21]} 36. Ra8 {[%clk 0:00:03]}  Rxb4 {[%clk 0:02:22]} 37. Rxa3 {[%clk 0:00:03]}  Rb5 {[%clk 0:02:23]} 38. Re3 {[%clk 0:00:03]}  Rd5 {[%clk 0:02:23]} 39. h4 {[%clk 0:00:04]}  Kg6 {[%clk 0:02:24]} 40. Re2 {[%clk 0:00:04]}  Kf5 {[%clk 0:02:24]} 41. Rc2 {[%clk 0:00:05]}  g5 {[%clk 0:02:24]} 42. Re2 {[%clk 0:00:05]}  gxh4 {[%clk 0:02:24]} 43. gxh4 {[%clk 0:00:06]}  Rd4 {[%clk 0:02:25]} 44. Kg3 {[%clk 0:00:06]}  h5 {[%clk 0:02:25]} 45. f3 {[%clk 0:00:06]}  Rd1 {[%clk 0:02:24]} 46. Ra2 {[%clk 0:00:05]}  Rg1+ {[%clk 0:02:25]} 47. Kh2 {[%clk 0:00:03]}  Rg6 {[%clk 0:02:24]} 48. Re2 {[%clk 0:00:03]}  Kf4 {[%clk 0:02:23]} 49. Re1 {[%clk 0:00:02]}  Rb6 {[%clk 0:02:16]} 50. Re4+ {[%clk 0:00:02]}  Kf5 {[%clk 0:02:16]} 51. Kg3 {[%clk 0:00:02]}  Rg6+ {[%clk 0:02:16]} 52. Kh3 {[%clk 0:00:01]}  Rd6 {[%clk 0:02:17]} 53. Re3 {[%clk 0:00:02]}  Rd4 {[%clk 0:02:18]} 54. Kg3 {[%clk 0:00:02]}  Ra4 {[%clk 0:02:17]} 55. Re1 {[%clk 0:00:03]}  Ra3 {[%clk 0:02:17]} 56. Re2 {[%clk 0:00:03]}  Rd3 {[%clk 0:02:16]} 57. Re1 {[%clk 0:00:02]}  Rd2 {[%clk 0:02:16]} 58. Rg1 {[%clk 0:00:02]}  Re2 {[%clk 0:02:14]} 59. Kh3 {[%clk 0:00:01]}  Kf4 {[%clk 0:02:14]} 60. Rg5 {[%clk 0:00:02]}  Kxf3 {[%clk 0:02:14]} 61. Rxh5 {[%clk 0:00:01]}  e4 {[%clk 0:02:15]} 62. Rf5+ {[%clk 0:00:01]}  Ke3 {[%clk 0:02:15]} 63. h5 {[%clk 0:00:02]}  Ra2 {[%clk 0:02:15]} 64. h6 {[%clk 0:00:01]}  Ra8 {[%clk 0:02:16]} 65. Rh5 {[%clk 0:00:02]}  Kf4 {[%clk 0:02:15]} 66. h7 {[%clk 0:00:03]}  Rh8 {[%clk 0:02:16]} 67. Kg2 {[%clk 0:00:03]}  Kg4 {[%clk 0:02:16]} 68. Rh1 {[%clk 0:00:03]}  e3 {[%clk 0:02:16]} 69. Kf1 {[%clk 0:00:02]}  Kf3 {[%clk 0:02:15]} 70. Rh3+ {[%clk 0:00:02]}  Ke4 {[%clk 0:02:16]} 71. Rh2 {[%clk 0:00:03]}  Kd3 {[%clk 0:02:16]} 72. Ke1 {[%clk 0:00:03]}  Ke4 {[%clk 0:02:15]} 73. Ke2 {[%clk 0:00:03]}  Kf4 {[%clk 0:02:15]} 74. Rh3 {[%clk 0:00:03]}  Kg4 {[%clk 0:02:15]} 75. Rh1 {[%clk 0:00:03]}  Kf4 {[%clk 0:02:15]} 76. Rg1 {[%clk 0:00:03]}  Rxh7 {[%clk 0:02:15]} 77. Rf1+ {[%clk 0:00:03]}  Ke4 {[%clk 0:02:15]} 78. Rg1 {[%clk 0:00:02]}  Rh2+ {[%clk 0:02:16]} 79. Ke1 {[%clk 0:00:01]}  Kd3 {[%clk 0:02:16]} 80. Kf1 {[%clk 0:00:01]}  Rf2+ {[%clk 0:02:15]} 0-1


[Site "https://www.chess.com"]